Cogmind - Beta 12 @@@ ROGUE MODE // 2023.12.05 @ 20:46:29 Player: Mozco Result: Self-destructed Performance ------------- Evolutions (2) 1000 Regions Visited (3) 600 Robots Destroyed (43) 215 Value Destroyed (949) 949 Prototype IDs (2) 40 Alien Tech Used (0) 0 Bonus (42) 42 TOTAL SCORE: 2846 Bonus ------- High Alert Combat Kills 42 Cogmind --------- Core Integrity 359/550 Matter 0/300 Energy 100/100 System Corruption 0% Temperature Cool (0) Movement Core (200) Ox3 Location -8/Materials Parts ------- > --- POWER (1) -------- (None) > --- PROPULSION (5) --- (None) > --- UTILITY (3) ------ Disposable Heat Sink Small Storage Unit Hardened Light Armor Plating > --- WEAPON (2) ------- Mini Grenade Launcher > --- INVENTORY (8) ---- Improved Terrain Scanner Terrain Scan Processor Hardened Light Armor Plating Hardened Light Armor Plating Hardened Light Armor Plating Peak State ------------ > --- POWER ------------ Light Ion Engine > --- PROPULSION ------- Flight Unit Flight Unit Flight Unit Flight Unit Flight Unit > --- UTILITY ---------- Disposable Heat Sink Small Storage Unit Hacking Suite > --- WEAPON ----------- Rocket Launcher Mini Grenade Launcher > --- INVENTORY -------- Improved Terrain Scanner Terrain Scan Processor Hardened Light Armor Plating Hardened Light Armor Plating Hardened Light Armor Plating Hardened Light Armor Plating [Rating: 17] Favorites ----------- Power Light Ion Engine Engine Light Ion Engine Propulsion Wheel Treads Light Treads Leg Titanium Leg Wheel Wheel Hover Unit Improved Hover Unit Flight Unit Flight Unit Utility Small Storage Unit Device Disposable Heat Sink Storage Small Storage Unit Hackware Hacking Suite Protection Hardened Light Armor Plating Weapon Assault Rifle Ballistic Gun Assault Rifle Launcher Mini Grenade Launcher Build | -11 -10 -9 -8 ------- Run | Jun Mat Mat Mat Slots Evolved 4 | . . 2 2 Power . | . . . . Propulsion 3 | . . 2 1 Utility 1 | . . . 1 Weapon . | . . . . Parts Attached 25 | 6 1 12 6 Power 2 | 1 . 1 . Engine 2 | 1 . 1 . Core . | . . . . Reactor . | . . . . Propulsion 13 | 2 . 7 4 Treads 2 | . . 2 . Leg 2 | . . . 2 Wheel 2 | 2 . . . Hover 1 | . . . 1 Flight 6 | . . 5 1 Utility 6 | 1 1 2 2 Device 1 | . . . 1 Storage 1 | 1 . . . Processor . | . . . . Hackware 1 | . . 1 . Protection 3 | . 1 1 1 Artifact . | . . . . Weapon 4 | 2 . 2 . Energy Gun . | . . . . Energy Cannon . | . . . . Ballistic Gun 2 | 2 . . . Ballistic Cannon . | . . . . Launcher 2 | . . 2 . Special Weapon . | . . . . Impact Weapon . | . . . . Slashing Weapon . | . . . . Piercing Weapon . | . . . . Special Melee Weapon . | . . . . Unidentified Prototypes . | . . . . Parts Lost 14 | . . 3 11 Power 1 | . . . 1 Propulsion 11 | . . 3 8 Utility 1 | . . . 1 Weapon 1 | . . . 1 Highest Loss Streak 7 | . . 3 7 To Critical Strikes 1 | . . 1 . Average Slot Usage (%) 87 | . 86 92 75 Engine 11 | . 14 11 7 Treads 6 | . . 14 . Leg 1 | . . . 7 Wheel 16 | . 28 14 . Flight 8 | . . 8 21 Device 1 | . . . 8 Storage 11 | . 14 11 9 Hackware 1 | . . 1 2 Protection 5 | . 1 9 1 Ballistic Gun 13 | . 28 8 . Launcher 9 | . . 13 16 Naked Turns . | . . . . Heaviest Build 18 | 12 15 18 14 Greatest Support 40 | 20 20 40 27 Greatest Overweight (x) 4 | . . 4 3 Average Overweight (x) . | . . . . Largest Inventory Capacity 8 | 8 8 8 8 Average Capacity 7 | 6 8 8 8 Most Carried 8 | 7 8 8 8 Average Carried 7 | 3 7 7 6 Final Capacity 8 | 8 8 8 8 Final Carried 8 | 7 8 8 5 Class Distribution -------------------- 80% | Mutant 15% | Scavenger-Sprinter 4% | Scavenger-Mutant Dominant Class ---------------- Mutant | -10/Materials Mutant | -9/Materials Mutant | -8/Materials Resources | -11 -10 -9 -8 ----------- Run | Jun Mat Mat Mat Matter Collected 520 | 142 61 292 25 Remotely . | . . . . Salvage Created 608 | 28 102 161 317 Parts 63 | 2 14 26 21 Haulers Intercepted . | . . . . Recyclers Shooed . | . . . . Parts Field Recycled . | . . . . Retrieved Matter . | . . . . Parts Self-Destructed . | . . . . Prevented . | . . . . Kills | -11 -10 -9 -8 ------- Run | Jun Mat Mat Mat Combat Hostiles Destroyed 31 | . 6 14 11 Melee 1 | . . 1 . Guns 7 | . 6 1 . AOE 23 | . . 12 11 Classes Destroyed 11 | 1 2 4 4 Worker 3 | . . 3 . Builder 4 | . . 1 3 Tunneler 2 | 1 . . 1 Recycler 1 | . . . 1 Operator 1 | . 1 . . Watcher 1 | . . . 1 Swarmer 16 | . 6 10 . Grunt 11 | . . 3 8 Brawler 1 | . . . 1 Sentry 2 | . . 1 1 Hunter 1 | . . . 1 Best Kill Streak 12 | 1 6 11 12 Combat Bots Only 9 | . 6 9 4 Max Kills in Single Turn 3 | 1 2 3 3 Gunslinging 1 | . 1 . . Exploded 3 | . . 3 3 Melee 1 | . . 1 . Uniques/NPCs Destroyed . | . . . . Combat | -11 -10 -9 -8 -------- Run | Jun Mat Mat Mat Damage Taken 1640 | . 189 552 899 Core 299 | . 57 51 191 Absorbed by Shields . | . . . . Core Remaining (%) 88 | 100 77 87 . Volleys Fired 60 | 1 22 21 16 Largest 2 | 2 2 2 2 Hottest 63 | 40 40 63 63 Shots Fired 88 | 2 44 22 20 Gun 53 | 2 44 7 . Cannon . | . . . . Launcher 35 | . . 15 20 Special . | . . . . Kinetic 53 | 2 44 7 . Thermal . | . . . . Explosive 35 | . . 15 20 Electromagnetic . | . . . . Robot Hit Streak 9 | 1 3 9 4 Robot Miss Streak 4 | 1 4 2 2 Penetration Max . | . . . . Secondary Targets 1 | . 1 . . Max Gunslinging Chain 1 | . 1 . . Shots Hit Robots 43 | 1 19 12 11 Core Hits 70 | 1 8 28 33 Critical Kills . | . . . . Critical Parts Destroyed 1 | . 1 . . Critical Strikes 1 | . 1 . . Destroy 1 | . 1 . . Melee Attacks . | . . . . Impact . | . . . . Slashing . | . . . . Piercing . | . . . . Sneak Attacks . | . . . . Combat Hostiles . | . . . . Follow-up Attacks . | . . . . Damage Inflicted 3293 | 24 233 1341 1695 Guns 312 | 24 233 55 . Cannons . | . . . . Explosions 2948 | . . 1253 1695 Melee . | . . . . Ramming 33 | . . 33 . Kinetic 312 | 24 233 55 . Thermal 16 | . . . 16 Explosive 2932 | . . 1253 1679 Electromagnetic . | . . . . Impact . | . . . . Slashing . | . . . . Piercing . | . . . . Highest Corruption . | . . . . Average Corruption . | . . . . Corruption Purged . | . . . . Corruption Blocked . | . . . . Overload Shots . | . . . . Overflow Damage 35 | . . 21 14 Projectiles . | . . . . Explosions 35 | . . 21 14 Melee . | . . . . Knockbacks . | . . . . Impact . | . . . . Kinetic . | . . . . Secondary . | . . . . Self-Inflicted Damage 146 | . . 49 97 Shots 6 | . . 1 5 Rammed 22 | . . 22 . Targets Rammed 23 | . . 23 . Kicked . | . . . . Crushed 1 | . . 1 . Highest Temperature 64 | . 6 10 64 Average Temperature 18 | . 6 5 26 Received Heat Transfer 312 | . . 6 306 Siege Activations . | . . . . Robots Corrupted . | . . . . Combat Hostiles . | . . . . Parts Fried . | . . . . Impact Corruptions . | . . . . Robots Melted . | . . . . Combat Hostiles . | . . . . Parts Melted . | . . . . Heat Transferred 50 | . . . 50 Parts Sabotaged . | . . . . Parts Stolen . | . . . . Parts Stripped . | . . . . Power Chain Reactions . | . . . . Missiles Intercepted . | . . . . Alert | -11 -10 -9 -8 ------- Run | Jun Mat Mat Mat Peak Influence 520 | 5 198 334 520 Initial 57 | . 3 26 57 Average 150 | . 53 224 229 Maximum Alert Level 2 | . . 1 2 Low Security (%) 62 | 100 100 37 34 Level 1 36 | . . 62 60 Level 2 . | . . . 4 Level 3 . | . . . . Level 4 . | . . . . Level 5 . | . . . . High Security . | . . . . Max Security . | . . . . Squads Dispatched 5 | . 2 . 3 Investigation . | . . . . Extermination . | . . . . Reinforcement 5 | . 2 . 3 Assault . | . . . . Garrison . | . . . . Intercept . | . . . . Searches Triggered . | . . . . Construction Impeded . | . . . . Haulers Reinforced . | . . . . Active Scanning Responses . | . . . . Cargo Convoy Interrupts . | . . . . Stealth | -11 -10 -9 -8 --------- Run | Jun Mat Mat Mat Distress Signals 4 | . . . 4 Communications Jammed . | . . . . Distress Signals . | . . . . Times Spotted 51 | . 11 19 21 Peak Tracking Total 10 | . 4 5 10 Tactical Retreats 4 | . 2 . 2 Traps | -11 -10 -9 -8 ------- Run | Jun Mat Mat Mat Traps Triggered 1 | . 1 . . Indirectly . | . . . . Trap Hack Attempts . | . . . . Triggered . | . . . . Disarmed . | . . . . Reprogrammed . | . . . . Reused . | . . . . Traps Extracted . | . . . . Installed . | . . . . Triggered . | . . . . Machines | -11 -10 -9 -8 ---------- Run | Jun Mat Mat Mat Machines Disabled 3 | . . 1 2 Max in Single Turn 1 | . . 1 1 Machines Repaired . | . . . . Machines Sabotaged . | . . . . Overloaded Fab Kills . | . . . . Hacking | -11 -10 -9 -8 --------- Run | Jun Mat Mat Mat Machines Accessed 12 | . 3 4 5 Terminals 11 | . 3 4 4 Fabricators . | . . . . Repair Stations . | . . . . Recycling Units . | . . . . Scanalyzers 1 | . . . 1 Garrison Access . | . . . . Total Hacks 37 | . 8 14 15 Successful 22 | . 3 9 10 Failed 14 | . 5 5 4 Catastrophic 1 | . 1 . . Database Lockouts 1 | . . . 1 Manual 11 | . 3 4 4 Terminals 35 | . 8 14 13 Fabricators . | . . . . Repair Stations . | . . . . Recycling Units . | . . . . Scanalyzers 2 | . . . 2 Garrison Access . | . . . . Terminal Hacks 14 | . 2 6 6 Robot Analysis 3 | . 1 . 2 Prototype ID Bank 1 | . . . 1 Alert Level 1 | . . 1 . Unreport Threat 3 | . 1 2 . Locate Traps 3 | . . 1 2 Zone Layout 3 | . . 2 1 Fabricator Hacks . | . . . . Repair Station Hacks . | . . . . Recycling Unit Hacks . | . . . . Scanalyzer 2 | . . . 2 Insert Component 1 | . . . 1 Analyze 1 | . . . 1 Garrison Access Hacks . | . . . . Unauthorized Hacks 6 | . 1 3 2 Terminals 6 | . 1 3 2 Botnet 5 | . 1 2 2 Operators 1 | . . 1 . Fabricators . | . . . . Repair Stations . | . . . . Recycling Units . | . . . . Scanalyzers . | . . . . Garrison Access . | . . . . Data Cores Recovered . | . . . . Used . | . . . . Hacking Detections 10 | . 3 4 3 Full Trace Events . | . . . . Feedback Events . | . . . . Feedback Blocked . | . . . . Robot Schematics Acquired . | . . . . Robots Built . | . . . . Authchips . | . . . . Time . | . . . . Total Robot Build Rating . | . . . . Part Schematics Acquired 1 | . . . 1 Parts Built . | . . . . Authchips . | . . . . Time . | . . . . Total Part Build Rating . | . . . . Parts Repaired . | . . . . Time . | . . . . Parts Recycled . | . . . . Recycled Matter . | . . . . Retrieved Matter . | . . . . Retrieved Components . | . . . . Parts Scanalyzed 1 | . . . 1 Part Schematics Acquired 1 | . . . 1 Parts Damaged . | . . . . Bothacking | -11 -10 -9 -8 ------------ Run | Jun Mat Mat Mat Used RIF Installer . | . . . . Robots Hacked . | . . . . Non-combat . | . . . . Combat . | . . . . Robot Hacks Applied . | . . . . Relay Couplers Released . | . . . . Fabnet Peak Effective % . | . . . . Robots Rewired . | . . . . Allies Hacked . | . . . . Hacks Repelled . | . . . . Allies | -11 -10 -9 -8 -------- Run | Jun Mat Mat Mat Total Allies . | . . . . Largest Group . | . . . . Highest-Rated Group . | . . . . Highest-Rated Ally . | . . . . Total Orders . | . . . . Ally Attacks . | . . . . Total Damage . | . . . . Kills . | . . . . Allies Corrupted . | . . . . Allies Melted . | . . . . Intel | -11 -10 -9 -8 ------- Run | Jun Mat Mat Mat Robot Analysis Total 3 | . 1 . 2 Derelict Logs Recovered . | . . . . Drone Launches . | . . . . Drone Recoveries . | . . . . Exploration | -11 -10 -9 -8 ------------- Run | Jun Mat Mat Mat Turns Passed 737 | 61 242 289 145 Spaces Moved 704 | 53 214 246 191 Core 2 | 1 . . 1 Treads 21 | . . 21 . Legs 35 | . . . 35 Wheels 402 | 52 214 136 . Hover 10 | . . . 10 Flight 234 | . . 89 145 Fastest Speed 28 | 50 80 31 28 Average Speed 70 | 79 80 73 52 Slowest Speed 360 | 80 80 360 200 Overloaded Moves . | . . . . Propulsion Burnouts . | . . . . Robots Hopped 1 | . . . 1 Cave-ins Triggered . | . . . . Exploration Rate (%) 24 | 4 41 27 27 Regions Visited 3 Branch Regions . Pre-discovered Areas . | . . . . Known Exits Taken . | . . . . Unknown Exits Taken 3 | 1 1 1 . Scrap Searched . | . . . . Spaces Dug 29 | . . 20 9 Terrain Destroyed 209 | . . 73 136 Melee . | . . . . Projectile . | . . . . AOE 209 | . . 73 136 Terrain Rammed . | . . . . Walls Destroyed . | . . . . Machines Disabled . | . . . . Actions | -11 -10 -9 -8 --------- Run | Jun Mat Mat Mat Total 841 | 66 241 320 214 Wait 5 | . . 5 . Move 699 | 52 213 245 189 Hop 1 | . . . 1 Pick Up 17 | 7 3 5 2 Fast Attach 14 | 6 1 6 1 Attach 7 | . . 2 5 Detach . | . . . . Swap 4 | . . 4 . Drop 11 | . 2 9 . Fire 60 | 1 22 21 16 Melee . | . . . . Ram . | . . . . Kick . | . . . . Crush 23 | . . 23 . Escape Stasis . | . . . . Rewire . | . . . . Trap . | . . . . Miscellaneous . | . . . . Route ------- -11/Junkyard -10/Materials -9/Materials (discovered 2 exits: *Mat / [*Min]) -8/Materials History --------- Turn | Location | Event 13 | -11/Junkyard | Discovered new exit (range 15) 62 | -11/Junkyard | Entered Materials 182 | -10/Materials | Discovered new exit (range 16) 304 | -10/Materials | Entered another Materials area 304 | -9/Materials | Evolved 2 slots: Propulsion x2 341 | -9/Materials | Build established: Mutant 404 | -9/Materials | Destroyed 9 combat bots 530 | -9/Materials | Lost 3 parts (3n) 557 | -9/Materials | Discovered new exit (range 16) 592 | -9/Materials | Discovered new exit (range 5) 593 | -9/Materials | Entered another Materials area 593 | -8/Materials | Evolved 2 slots: Propulsion x1, Utility x1 626 | -8/Materials | Central database locked down 675 | -8/Materials | Lost 4 parts (3n1u) 738 | -8/Materials | Self-destructed Last Messages --------------- 00714_ Acquired 7 matter. 00714_ U-05 Engineer builds a Wall. 00716_ Knocked back. 00719_ Acquired 2 matter. 00720_ U-05 Engineer lays Concrete. 00725_ Hadron Collector disabled. 00725_ U-05 Engineer builds a Wall. 00726_ U-05 Engineer destroyed. 00726_ W-25 Informer destroyed. 00727_ Imp. Hover Unit destroyed. 00728_ The unstable cave ceiling collapses. 00731_ Critical hit (Burn: +37). 00732_ G-47 Trooper destroyed. 00734_ B-36 Bruiser destroyed. 00734_ R-06 Scavenger destroyed. 00736_ ALERT: Suspicious intruders detected, dispatching Cutter reinforcements to area. 00737_ Knocked back. 00737_ R-06 Scavenger knocked back. 00738_ R-06 Scavenger collects Aluminum Leg. Map ----- +----------------------------------------------------+ | | | | | | | ?????????????????????????????????????????????????? | | ?????????????????????????????????????????????????? | | ?????????????????????????????????????????????????? | | ?????????????????????????????????????????????????? | | ?????????????????????????????????????????????????? | | ????????????????????????????????????? ???????????? | | ????????????????????????????????????? [????????? | | ???????????????????????????????????## [[[??????? | | ??????????????????????????????????? " [[[ ?????? | | ????????????????/ ?????????????????""""""""#+?#### | | ????????????????#a ???????????????? " | | ????????????????# c???????????????" " | | ????????????????# ??????????????" " #? | | ????????????????# ####?????????#; #? | | ??????????????### c ###????## #? | | ??????????????? c ##### # #? | | ????????????? ??# # #? | | ?????????????"" # r % r % = ? | | ?????????????"" % =% ! ? | | ????????????????# !%! ? | | ????????????????# "" % ## #? | | ????????????????# ! ### #? | | ????????????????# # "@ #?# ] # ## | | ????????????????# "" ## H " ## # | | ????????????????# # """ ## """ """" ## # | | ????????????????#???# """ ### """ """ # | | ????????????????????# #?# | | ????????????????????########?######## # # | | ????????????????????????????????????# | | ????????????????????????????????????# | | ????????????????????????????????????# | | ????????????????????????????????????# # | | ???????????????????????????????????# ## | | ???????????????????????????????????## ## ##### | | ????????????????????????????????????# # # | | ????????????????????????????????????# # T # | | ????????????????????????????????????# # # | | ?????????????????????+############### # # " | | ?????????????????? # # " | | ?????????????????? # """ # " | | ?????????????????? # """ # | | ?????????????????????################ + """ # | | ??????????????????????????####?###### # | | ??????????????????????????# ## #! #### | | ??????????????????????????# # ######?# | | ??????????????????????????# #?????# | | ??????????????????????????# ##?????# | +----------------------------------------------------+ Best States ------------- Heat Dissipation 31 Coolant Potential 50 Energy Generation 10 Energy Capacity 125 Matter Stores 234 Matter Capacity 300 Sight Range 16 Terrain Scan Density 10 Armor Coverage 150 Evasion (%) 64 Recoil Reduction 2 Offensive Hacking 10 Item Schematics ----------------- Imp. Terrain Scanner | -8/Materials | Scanalyzed Robot Schematics ------------------ None Fabricated ------------ Nothing Alien Tech Used ----------------- None Achievements -------------- None Challenges ------------ None Game ------ Seed GyrokineticWardroneBlade Manual? 0 Play Time 00:12:26 Cumulative 115.6 hours Start 2023.12.05 @ 20:34:00 End 2023.12.05 @ 20:46:29 Sessions 1 Manual Loads 0 Difficulty Rogue Special Mode None Game No. 94 Rogue 91 Adventurer 3 Explorer 0 Win Type - Total 0 Types 0/0/0/0/0/0/0/0/0 Lore% 62 Gallery% 70 Achievement% 55 Wizard Run 0 Options --------- ASCII 0 Keyboard 0 Movement Mouse Keybinds 0 Fullscreen 2 Font 18/SmallcapsGlow Map View 76x50 Tactical HUD 1 Map Filters NONE Filters NONE Steam 1 RUN: d5788ec3-9d12-4603-8df5-88d46b65e52a